[Event "Early-Titled-Tuesday-Blitz-July-09-2024"]
[Site "Chess.com"]
[Date "2024.07.09"]
[Round "1"]
[White "Kopytkin"]
[Black "Adar_07"]
[Result "0-1"]
[WhiteElo "2424"]
[BlackElo "2773"]
[TimeControl "180+1"]
[EndTime "8:07:16 PDT"]
[Termination "Adar_07 won on time"]

1. d4 {[%clk 0:03:00.2]} 1... Nf6 {[%clk 0:00:43.9]} 2. Bg5 {[%clk 0:02:58.6]}
2... c5 {[%clk 0:00:42.8]} 3. d5 {[%clk 0:02:58.5]} 3... e6 {[%clk 0:00:42.7]}
4. Nc3 {[%clk 0:02:49.5]} 4... Qb6 {[%clk 0:00:38.1]} 5. Bxf6 {[%clk 0:02:27.4]}
5... gxf6 {[%clk 0:00:39]} 6. Rb1 {[%clk 0:02:27.5]} 6... f5 {[%clk 0:00:36.6]}
7. f3 {[%clk 0:02:11.6]} 7... Bg7 {[%clk 0:00:36.5]} 8. e4 {[%clk 0:02:11.9]}
8... fxe4 {[%clk 0:00:37.4]} 9. fxe4 {[%clk 0:02:11.6]} 9... Qb4 {[%clk
0:00:37]} 10. Ne2 {[%clk 0:02:02.6]} 10... exd5 {[%clk 0:00:36.9]} 11. a3 {[%clk
0:02:01.6]} 11... Qa5 {[%clk 0:00:36.6]} 12. b4 {[%clk 0:01:58.3]} 12... cxb4
{[%clk 0:00:31.4]} 13. axb4 {[%clk 0:01:59.2]} 13... Qd8 {[%clk 0:00:27.4]} 14.
Nxd5 {[%clk 0:01:58.4]} 14... O-O {[%clk 0:00:27.1]} 15. Ng3 {[%clk 0:01:44.5]}
15... d6 {[%clk 0:00:22.7]} 16. Bd3 {[%clk 0:01:42.9]} 16... a5 {[%clk
0:00:21.5]} 17. b5 {[%clk 0:01:40.9]} 17... a4 {[%clk 0:00:20.6]} 18. O-O {[%clk
0:01:38.8]} 18... a3 {[%clk 0:00:21.1]} 19. c3 {[%clk 0:01:21.9]} 19... Nd7
{[%clk 0:00:18.8]} 20. Nh5 {[%clk 0:01:12.2]} 20... Ne5 {[%clk 0:00:17.7]} 21.
Nhf6+ {[%clk 0:01:10.7]} 21... Kh8 {[%clk 0:00:17.5]} 22. Qh5 {[%clk 0:01:10.1]}
22... h6 {[%clk 0:00:17.8]} 23. Bc2 {[%clk 0:01:03.1]} 23... Be6 {[%clk
0:00:17.1]} 24. Rf4 {[%clk 0:00:43.8]} 24... Bxd5 {[%clk 0:00:15.2]} 25. exd5
{[%clk 0:00:43.8]} 25... Ng6 {[%clk 0:00:15.7]} 26. Rbf1 {[%clk 0:00:22.3]}
26... Nxf4 {[%clk 0:00:14.1]} 27. Rxf4 {[%clk 0:00:21.3]} 27... Qb6+ {[%clk
0:00:12.1]} 28. Rf2 {[%clk 0:00:14]} 28... a2 {[%clk 0:00:12.4]} 29. g3 {[%clk
0:00:06.4]} 29... a1=Q+ {[%clk 0:00:12]} 30. Kg2 {[%clk 0:00:06.4]} 30... Ra2
{[%clk 0:00:09.4]} 31. Qf5 {[%clk 0:00:06]} 31... Qxf2+ {[%clk 0:00:09.2]} 32.
Kxf2 {[%clk 0:00:04.1]} 32... Rxc2+ {[%clk 0:00:08.8]} 33. Qxc2 {[%clk
0:00:04.6]} 33... Bxf6 {[%clk 0:00:08.7]} 34. Qf5 {[%clk 0:00:04.6]} 34... Qxc3
{[%clk 0:00:08.9]} 0-1

[Event "Early-Titled-Tuesday-Blitz-July-09-2024"]
[Site "Chess.com"]
[Date "2024.07.09"]
[Round "1"]
[White "Cherepov_Alexej"]
[Black "Chessgod9oninsta"]
[Result "0-1"]
[WhiteElo "2446"]
[BlackElo "2803"]
[TimeControl "180+1"]
[EndTime "8:07:17 PDT"]
[Termination "Chessgod9oninsta won on time"]

1. d4 {[%clk 0:03:00.9]} 1... d5 {[%clk 0:02:58.5]} 2. c4 {[%clk 0:02:58]} 2...
e6 {[%clk 0:02:58.9]} 3. Nf3 {[%clk 0:02:57.3]} 3... Nf6 {[%clk 0:02:59]} 4. g3
{[%clk 0:02:57.4]} 4... Bb4+ {[%clk 0:02:59.5]} 5. Bd2 {[%clk 0:02:56.6]} 5...
Be7 {[%clk 0:02:59.9]} 6. Bg2 {[%clk 0:02:57]} 6... c6 {[%clk 0:03:00.3]} 7. O-O
{[%clk 0:02:57.1]} 7... Nbd7 {[%clk 0:03:00.5]} 8. Qc2 {[%clk 0:02:56.8]} 8...
Ne4 {[%clk 0:03:00.3]} 9. Be1 {[%clk 0:02:55.7]} 9... a5 {[%clk 0:02:58.1]} 10.
Nfd2 {[%clk 0:02:53.2]} 10... f5 {[%clk 0:02:56]} 11. Nxe4 {[%clk 0:02:52.8]}
11... dxe4 {[%clk 0:02:55.5]} 12. f3 {[%clk 0:02:52.3]} 12... Nf6 {[%clk
0:02:51.3]} 13. Bc3 {[%clk 0:02:42.8]} 13... exf3 {[%clk 0:02:36.8]} 14. exf3
{[%clk 0:02:31]} 14... Qb6 {[%clk 0:02:23.3]} 15. c5 {[%clk 0:02:22.7]} 15...
Qd8 {[%clk 0:02:18.5]} 16. f4 {[%clk 0:02:21.5]} 16... O-O {[%clk 0:02:17.8]}
17. Nd2 {[%clk 0:02:20.8]} 17... Nd5 {[%clk 0:02:17.3]} 18. Rae1 {[%clk
0:02:15.4]} 18... Bf6 {[%clk 0:02:16.7]} 19. Nc4 {[%clk 0:02:12.6]} 19... Bd7
{[%clk 0:02:05.6]} 20. Qd2 {[%clk 0:01:55.4]} 20... a4 {[%clk 0:02:04.2]} 21.
Nd6 {[%clk 0:01:46.1]} 21... b5 {[%clk 0:01:57.8]} 22. cxb6 {[%clk 0:01:19.7]}
22... Qxb6 {[%clk 0:01:51.2]} 23. Nc4 {[%clk 0:01:18.7]} 23... Qc7 {[%clk
0:01:50.6]} 24. Kh1 {[%clk 0:01:09.4]} 24... Rab8 {[%clk 0:01:41.5]} 25. Re2
{[%clk 0:01:08]} 25... Rfd8 {[%clk 0:01:33.7]} 26. Ba5 {[%clk 0:01:04]} 26...
Qa7 {[%clk 0:01:32.3]} 27. Bxd8 {[%clk 0:01:03.3]} 27... Rxd8 {[%clk 0:01:33.2]}
28. Ne5 {[%clk 0:00:58.1]} 28... Be8 {[%clk 0:01:30.3]} 29. Rc1 {[%clk
0:00:56.4]} 29... Ne7 {[%clk 0:01:24.7]} 30. Qc3 {[%clk 0:00:28]} 30... Rxd4
{[%clk 0:01:20.9]} 31. Rd2 {[%clk 0:00:21]} 31... c5 {[%clk 0:01:01.6]} 32. Rxd4
{[%clk 0:00:16.9]} 32... cxd4 {[%clk 0:01:01.7]} 33. Qc4 {[%clk 0:00:16.7]}
33... Qb6 {[%clk 0:00:57.5]} 34. b4 {[%clk 0:00:13.6]} 34... axb3 {[%clk
0:00:57.2]} 35. axb3 {[%clk 0:00:13.3]} 35... g5 {[%clk 0:00:45.8]} 36. Nf3
{[%clk 0:00:10.1]} 36... gxf4 {[%clk 0:00:34.6]} 37. gxf4 {[%clk 0:00:11]} 37...
Nd5 {[%clk 0:00:28.4]} 38. Re1 {[%clk 0:00:01.9]} 38... Nxf4 {[%clk 0:00:20.6]}
39. b4 {[%clk 0:00:02.2]} 39... Bc6 {[%clk 0:00:17.6]} 0-1

[Event "Early-Titled-Tuesday-Blitz-July-09-2024"]
[Site "Chess.com"]
[Date "2024.07.09"]
[Round "1"]
[White "Andrey_Klymchuk"]
[Black "orkinyo12345"]
[Result "1-0"]
[WhiteElo "2755"]
[BlackElo "2420"]
[TimeControl "180+1"]
[EndTime "8:07:17 PDT"]
[Termination "Andrey_Klymchuk won by resignation"]

1. e4 {[%clk 0:02:49.5]} 1... e5 {[%clk 0:03:00]} 2. Nf3 {[%clk 0:02:44]} 2...
Nc6 {[%clk 0:03:00.2]} 3. Bb5 {[%clk 0:02:42.4]} 3... a6 {[%clk 0:02:57]} 4. Ba4
{[%clk 0:02:41.4]} 4... Nf6 {[%clk 0:02:56.2]} 5. Nc3 {[%clk 0:02:38.9]} 5...
Be7 {[%clk 0:02:47.8]} 6. O-O {[%clk 0:02:25.2]} 6... b5 {[%clk 0:02:46.1]} 7.
Bb3 {[%clk 0:02:24.7]} 7... d6 {[%clk 0:02:47]} 8. h3 {[%clk 0:02:20]} 8... Na5
{[%clk 0:02:33.2]} 9. Re1 {[%clk 0:02:15.6]} 9... O-O {[%clk 0:02:24.3]} 10. d3
{[%clk 0:02:11.4]} 10... Re8 {[%clk 0:02:18.3]} 11. Be3 {[%clk 0:02:01.7]} 11...
Bb7 {[%clk 0:02:10.4]} 12. Ng5 {[%clk 0:02:00.3]} 12... Nxb3 {[%clk 0:02:09.1]}
13. axb3 {[%clk 0:02:00]} 13... d5 {[%clk 0:02:05.9]} 14. exd5 {[%clk
0:01:50.4]} 14... Nxd5 {[%clk 0:02:06.8]} 15. Qh5 {[%clk 0:01:45.3]} 15... Bxg5
{[%clk 0:02:06.7]} 16. Bxg5 {[%clk 0:01:44.8]} 16... f6 {[%clk 0:02:06.2]} 17.
Be3 {[%clk 0:01:40.2]} 17... Nb4 {[%clk 0:01:56]} 18. Re2 {[%clk 0:01:39.6]}
18... Qd7 {[%clk 0:01:47.6]} 19. Rae1 {[%clk 0:01:35.4]} 19... Qc6 {[%clk
0:01:23.4]} 20. f3 {[%clk 0:01:28.9]} 20... a5 {[%clk 0:00:52.1]} 21. Qg4 {[%clk
0:01:23.6]} 21... Bc8 {[%clk 0:00:47.4]} 22. Qe4 {[%clk 0:01:19.9]} 22... Bb7
{[%clk 0:00:44.7]} 23. Qxc6 {[%clk 0:01:18.7]} 23... Bxc6 {[%clk 0:00:45.6]} 24.
Ra1 {[%clk 0:01:14.7]} 24... a4 {[%clk 0:00:39.9]} 25. bxa4 {[%clk 0:01:14.2]}
25... bxa4 {[%clk 0:00:40.8]} 26. Bc5 {[%clk 0:01:14.2]} 26... Reb8 {[%clk
0:00:40.4]} 27. Kf2 {[%clk 0:01:10.3]} 27... Bd7 {[%clk 0:00:29.5]} 28. Ke1
{[%clk 0:01:07.8]} 28... Kf7 {[%clk 0:00:20.6]} 29. Kd2 {[%clk 0:01:06.5]} 29...
Bc6 {[%clk 0:00:12.2]} 30. h4 {[%clk 0:00:58.4]} 30... Bd7 {[%clk 0:00:11.9]}
31. h5 {[%clk 0:00:54.9]} 31... Ra5 {[%clk 0:00:12]} 32. Bf2 {[%clk 0:00:45.8]}
32... Nc6 {[%clk 0:00:09.2]} 33. Kc1 {[%clk 0:00:43.9]} 33... Nd4 {[%clk
0:00:07.4]} 34. Re4 {[%clk 0:00:41.2]} 34... Bc6 {[%clk 0:00:06.5]} 35. Re1
{[%clk 0:00:40.9]} 35... Rba8 {[%clk 0:00:03.2]} 36. Ra3 {[%clk 0:00:39.5]}
36... Nb5 {[%clk 0:00:02.3]} 37. Nxb5 {[%clk 0:00:38.8]} 37... Bxb5 {[%clk
0:00:03.2]} 38. Be3 {[%clk 0:00:37]} 38... Be8 {[%clk 0:00:02.7]} 39. Bd2 {[%clk
0:00:35]} 39... Rb5 {[%clk 0:00:03.2]} 40. Bc3 {[%clk 0:00:35]} 40... Rb7 {[%clk
0:00:03.6]} 41. d4 {[%clk 0:00:33]} 41... exd4 {[%clk 0:00:03.7]} 42. Bxd4
{[%clk 0:00:33.9]} 42... Rd8 {[%clk 0:00:04.2]} 43. Rae3 {[%clk 0:00:32.1]}
43... Rxd4 {[%clk 0:00:04.3]} 44. Re7+ {[%clk 0:00:31.6]} 1-0

[Event "Early-Titled-Tuesday-Blitz-July-09-2024"]
[Site "Chess.com"]
[Date "2024.07.09"]
[Round "1"]
[White "dretch"]
[Black "jlf287"]
[Result "1-0"]
[WhiteElo "2878"]
[BlackElo "2478"]
[TimeControl "180+1"]
[EndTime "8:07:18 PDT"]
[Termination "dretch won by resignation"]

1. d4 {[%clk 0:03:00.9]} 1... d5 {[%clk 0:02:59.7]} 2. c4 {[%clk 0:03:00.4]}
2... c6 {[%clk 0:02:59.6]} 3. Nc3 {[%clk 0:02:59.9]} 3... Nf6 {[%clk 0:03:00.1]}
4. e3 {[%clk 0:03:00.1]} 4... e6 {[%clk 0:02:59.9]} 5. Bd3 {[%clk 0:03:00.2]}
5... dxc4 {[%clk 0:02:57.5]} 6. Bxc4 {[%clk 0:03:00.6]} 6... Nbd7 {[%clk
0:02:58.1]} 7. Nf3 {[%clk 0:02:59.5]} 7... b5 {[%clk 0:02:57.1]} 8. Bd3 {[%clk
0:02:57.5]} 8... Bd6 {[%clk 0:02:55.5]} 9. O-O {[%clk 0:02:51.8]} 9... Bb7
{[%clk 0:02:54]} 10. e4 {[%clk 0:02:44.1]} 10... e5 {[%clk 0:02:52.3]} 11. Re1
{[%clk 0:02:44.3]} 11... b4 {[%clk 0:02:47.4]} 12. Ne2 {[%clk 0:02:41.8]} 12...
c5 {[%clk 0:02:46.1]} 13. d5 {[%clk 0:02:33.5]} 13... O-O {[%clk 0:02:39.1]} 14.
b3 {[%clk 0:02:33.5]} 14... Re8 {[%clk 0:02:30.9]} 15. Ng3 {[%clk 0:02:32.3]}
15... Bc8 {[%clk 0:02:19.3]} 16. Nf5 {[%clk 0:02:28.1]} 16... Bf8 {[%clk
0:02:11.6]} 17. Bb2 {[%clk 0:02:19.8]} 17... g6 {[%clk 0:02:08]} 18. Ne3 {[%clk
0:02:18.1]} 18... Nh5 {[%clk 0:02:01.7]} 19. Nc4 {[%clk 0:02:15.7]} 19... f6
{[%clk 0:01:54.7]} 20. Rc1 {[%clk 0:02:04]} 20... Nb6 {[%clk 0:01:51.5]} 21. Ne3
{[%clk 0:01:48]} 21... Bd6 {[%clk 0:01:46.9]} 22. Bb5 {[%clk 0:01:46.5]} 22...
Bd7 {[%clk 0:01:37.1]} 23. Bxd7 {[%clk 0:01:45.7]} 23... Qxd7 {[%clk 0:01:35.8]}
24. a4 {[%clk 0:01:36.4]} 24... a5 {[%clk 0:01:32.2]} 25. Nc4 {[%clk 0:01:29.9]}
25... Nxc4 {[%clk 0:01:27.4]} 26. Rxc4 {[%clk 0:01:30.5]} 26... Nf4 {[%clk
0:01:26.9]} 27. Bc1 {[%clk 0:01:30.6]} 27... Qg4 {[%clk 0:01:25.4]} 28. Bxf4
{[%clk 0:01:25.1]} 28... Qxf4 {[%clk 0:01:24.1]} 29. Qd3 {[%clk 0:01:14.1]}
29... Kh8 {[%clk 0:01:14.6]} 30. Nd2 {[%clk 0:01:13.5]} 30... h5 {[%clk
0:01:02.1]} 31. Rc2 {[%clk 0:01:08.2]} 31... Qh6 {[%clk 0:00:55.6]} 32. Qb5
{[%clk 0:01:00.4]} 32... Reb8 {[%clk 0:00:52.6]} 33. Qc6 {[%clk 0:00:58.3]}
33... Qf8 {[%clk 0:00:53.1]} 34. Nc4 {[%clk 0:00:57.7]} 34... Rd8 {[%clk
0:00:49.8]} 35. Nxd6 {[%clk 0:00:50.5]} 35... Qxd6 {[%clk 0:00:50.7]} 36. Qxd6
{[%clk 0:00:48.9]} 36... Rxd6 {[%clk 0:00:51.6]} 37. Rxc5 {[%clk 0:00:49.2]}
37... f5 {[%clk 0:00:51]} 38. exf5 {[%clk 0:00:46.8]} 38... gxf5 {[%clk
0:00:45.6]} 39. Rxe5 {[%clk 0:00:46.6]} 39... Kg7 {[%clk 0:00:44.3]} 40. f4
{[%clk 0:00:41.4]} 40... Kf6 {[%clk 0:00:42.1]} 41. Kf2 {[%clk 0:00:41.3]} 41...
h4 {[%clk 0:00:41.6]} 42. Rc6 {[%clk 0:00:36.4]} 42... Rd8 {[%clk 0:00:37.5]}
43. Ke3 {[%clk 0:00:25.5]} 43... Rxc6 {[%clk 0:00:22.7]} 44. dxc6 {[%clk
0:00:25.1]} 44... Rc8 {[%clk 0:00:23]} 45. Rc5 {[%clk 0:00:23.1]} 45... Ke6
{[%clk 0:00:23.4]} 46. c7 {[%clk 0:00:21.6]} 46... Kd6 {[%clk 0:00:21.8]} 47.
Kd4 {[%clk 0:00:21.8]} 47... Kd7 {[%clk 0:00:19.9]} 48. Kd5 {[%clk 0:00:21.8]}
48... Ke7 {[%clk 0:00:18.1]} 49. Kc6 {[%clk 0:00:22]} 1-0

[Event "Early-Titled-Tuesday-Blitz-July-09-2024"]
[Site "Chess.com"]
[Date "2024.07.09"]
[Round "1"]
[White "Rakhmanov_Aleksandr"]
[Black "Dr_Pepper18"]
[Result "1-0"]
[WhiteElo "2840"]
[BlackElo "2456"]
[TimeControl "180+1"]
[EndTime "8:07:19 PDT"]
[Termination "Rakhmanov_Aleksandr won on time"]

1. c4 {[%clk 0:02:56.8]} 1... Nf6 {[%clk 0:02:59.1]} 2. Nc3 {[%clk 0:02:53.3]}
2... g6 {[%clk 0:02:58.1]} 3. g3 {[%clk 0:02:52.8]} 3... Bg7 {[%clk 0:02:54.4]}
4. Bg2 {[%clk 0:02:52.8]} 4... O-O {[%clk 0:02:53.7]} 5. d3 {[%clk 0:02:52.6]}
5... d6 {[%clk 0:02:53.5]} 6. h3 {[%clk 0:02:52.7]} 6... c5 {[%clk 0:02:46.1]}
7. e3 {[%clk 0:02:47.3]} 7... Nc6 {[%clk 0:02:45.5]} 8. Nge2 {[%clk 0:02:46.1]}
8... e5 {[%clk 0:02:45.5]} 9. O-O {[%clk 0:02:45.5]} 9... Be6 {[%clk 0:02:46.1]}
10. Nd5 {[%clk 0:02:42.7]} 10... Qd7 {[%clk 0:02:31.6]} 11. Kh2 {[%clk
0:02:42.5]} 11... Rab8 {[%clk 0:02:29.3]} 12. b3 {[%clk 0:02:35.6]} 12... e4
{[%clk 0:02:04.6]} 13. Nxf6+ {[%clk 0:02:14.3]} 13... Bxf6 {[%clk 0:02:05.5]}
14. Rb1 {[%clk 0:02:13.1]} 14... exd3 {[%clk 0:01:46.6]} 15. Nf4 {[%clk
0:01:55.9]} 15... b5 {[%clk 0:01:41.3]} 16. cxb5 {[%clk 0:01:29.9]} 16... Rxb5
{[%clk 0:01:42.2]} 17. Nxe6 {[%clk 0:01:25.6]} 17... fxe6 {[%clk 0:01:38.3]} 18.
Qxd3 {[%clk 0:01:26.1]} 18... Nb4 {[%clk 0:01:29.9]} 19. Qe2 {[%clk 0:01:22.8]}
19... Rb6 {[%clk 0:01:27.4]} 20. Rd1 {[%clk 0:01:16.4]} 20... d5 {[%clk
0:01:22]} 21. f4 {[%clk 0:00:43]} 21... Qc7 {[%clk 0:01:00.5]} 22. e4 {[%clk
0:00:27.9]} 22... dxe4 {[%clk 0:00:45.6]} 23. Bxe4 {[%clk 0:00:21.1]} 23... Bd4
{[%clk 0:00:45.1]} 24. Bg2 {[%clk 0:00:10.6]} 24... e5 {[%clk 0:00:41.1]} 25.
Rf1 {[%clk 0:00:09.9]} 25... Rbf6 {[%clk 0:00:38]} 26. Bd2 {[%clk 0:00:08.1]}
26... Nc6 {[%clk 0:00:30.4]} 27. Qe4 {[%clk 0:00:03.7]} 27... exf4 {[%clk
0:00:06.1]} 28. Bxf4 {[%clk 0:00:03.6]} 28... Be5 {[%clk 0:00:06.7]} 29. Bxe5
{[%clk 0:00:04]} 29... Nxe5 {[%clk 0:00:07.6]} 30. Rxf6 {[%clk 0:00:04.2]} 30...
Rxf6 {[%clk 0:00:08.1]} 31. Re1 {[%clk 0:00:04.9]} 31... Nf7 {[%clk 0:00:02.9]}
32. Qe3 {[%clk 0:00:02.8]} 1-0

[Event "Early-Titled-Tuesday-Blitz-July-09-2024"]
[Site "Chess.com"]
[Date "2024.07.09"]
[Round "1"]
[White "JoJoZP"]
[Black "Zhigalko_Sergei"]
[Result "0-1"]
[WhiteElo "2500"]
[BlackElo "2925"]
[TimeControl "180+1"]
[EndTime "8:07:22 PDT"]
[Termination "Zhigalko_Sergei won on time"]

1. Nf3 {[%clk 0:03:00.9]} 1... d5 {[%clk 0:03:00.1]} 2. e3 {[%clk 0:03:00.8]}
2... Nf6 {[%clk 0:02:59.7]} 3. c4 {[%clk 0:03:00.8]} 3... e6 {[%clk 0:03:00.1]}
4. Nc3 {[%clk 0:03:00.6]} 4... Bd6 {[%clk 0:03:00.4]} 5. b3 {[%clk 0:03:00.6]}
5... O-O {[%clk 0:03:00.6]} 6. Bb2 {[%clk 0:03:01.1]} 6... b6 {[%clk 0:02:56.5]}
7. cxd5 {[%clk 0:02:56.7]} 7... exd5 {[%clk 0:02:56.6]} 8. Rc1 {[%clk
0:02:53.1]} 8... a6 {[%clk 0:02:55.9]} 9. g3 {[%clk 0:02:52.4]} 9... Nbd7 {[%clk
0:02:46.7]} 10. d4 {[%clk 0:02:45]} 10... Re8 {[%clk 0:02:41.2]} 11. Bg2 {[%clk
0:02:44.8]} 11... Bb7 {[%clk 0:02:39.6]} 12. O-O {[%clk 0:02:44.8]} 12... Qe7
{[%clk 0:02:37.5]} 13. Ne2 {[%clk 0:02:43.5]} 13... Ne4 {[%clk 0:02:34.4]} 14.
Nf4 {[%clk 0:02:36.7]} 14... Rad8 {[%clk 0:02:32.7]} 15. Qc2 {[%clk 0:02:28.8]}
15... c5 {[%clk 0:02:19.4]} 16. Rfd1 {[%clk 0:02:22.5]} 16... Ndf6 {[%clk
0:02:19.5]} 17. Nd3 {[%clk 0:02:12.8]} 17... Ng4 {[%clk 0:01:58.1]} 18. dxc5
{[%clk 0:01:53.6]} 18... bxc5 {[%clk 0:01:56.5]} 19. h3 {[%clk 0:01:40.6]} 19...
Nexf2 {[%clk 0:01:44.4]} 20. Nxf2 {[%clk 0:01:16.2]} 20... Nxe3 {[%clk
0:01:43.1]} 21. Re1 {[%clk 0:00:57.3]} 21... d4 {[%clk 0:00:59.6]} 22. Rxe3
{[%clk 0:00:37.3]} 22... dxe3 {[%clk 0:00:50.3]} 23. Ng4 {[%clk 0:00:31.3]}
23... Bxg3 {[%clk 0:00:38.3]} 24. Qc3 {[%clk 0:00:20.6]} 24... f6 {[%clk
0:00:37.8]} 25. Qc4+ {[%clk 0:00:06.7]} 25... Bd5 {[%clk 0:00:27.3]} 26. Qe2
{[%clk 0:00:07.3]} 26... h5 {[%clk 0:00:17.3]} 27. Ngh2 {[%clk 0:00:06.3]} 27...
Bf7 {[%clk 0:00:12]} 28. Nf1 {[%clk 0:00:06.6]} 28... Bf2+ {[%clk 0:00:11.9]}
29. Kh1 {[%clk 0:00:07.3]} 29... Qd7 {[%clk 0:00:10.4]} 30. Bc3 {[%clk
0:00:04.9]} 30... Qd3 {[%clk 0:00:09.9]} 31. Rc2 {[%clk 0:00:03.9]} 31... Bg6
{[%clk 0:00:09.5]} 32. Qxd3 {[%clk 0:00:02.6]} 32... Bxd3 {[%clk 0:00:09.3]} 33.
Rc1 {[%clk 0:00:02.1]} 33... e2 {[%clk 0:00:09.2]} 34. N1h2 {[%clk 0:00:02]}
34... Be4 {[%clk 0:00:08.6]} 35. Be1 {[%clk 0:00:01]} 35... Rd1 {[%clk
0:00:08.2]} 0-1

[Event "Early-Titled-Tuesday-Blitz-July-09-2024"]
[Site "Chess.com"]
[Date "2024.07.09"]
[Round "1"]
[White "Emp3rador"]
[Black "glucolisis04"]
[Result "1-0"]
[WhiteElo "2616"]
[BlackElo "2300"]
[TimeControl "180+1"]
[EndTime "8:07:22 PDT"]
[Termination "Emp3rador won on time"]

1. e4 {[%clk 0:02:42.7]} 1... c5 {[%clk 0:02:59.9]} 2. Nf3 {[%clk 0:02:40.5]}
2... Nc6 {[%clk 0:03:00.1]} 3. d4 {[%clk 0:02:37]} 3... cxd4 {[%clk 0:02:59.6]}
4. Nxd4 {[%clk 0:02:37.9]} 4... Nf6 {[%clk 0:03:00.3]} 5. Nc3 {[%clk 0:02:37.7]}
5... e5 {[%clk 0:02:59.9]} 6. Ndb5 {[%clk 0:02:37.4]} 6... d6 {[%clk 0:02:59.8]}
7. Bg5 {[%clk 0:02:38]} 7... a6 {[%clk 0:02:59.5]} 8. Na3 {[%clk 0:02:38.3]}
8... b5 {[%clk 0:02:59.2]} 9. Nd5 {[%clk 0:02:38.5]} 9... Be7 {[%clk 0:02:59.1]}
10. Bxf6 {[%clk 0:02:38.3]} 10... Bxf6 {[%clk 0:02:59.7]} 11. c3 {[%clk
0:02:39.1]} 11... Rb8 {[%clk 0:02:57.1]} 12. Nc2 {[%clk 0:02:39.7]} 12... Bg5
{[%clk 0:02:57.2]} 13. Be2 {[%clk 0:02:39]} 13... a5 {[%clk 0:02:32.8]} 14. O-O
{[%clk 0:02:35.7]} 14... O-O {[%clk 0:02:32.9]} 15. Bg4 {[%clk 0:02:35]} 15...
Be6 {[%clk 0:02:11.2]} 16. b4 {[%clk 0:02:25.9]} 16... Qd7 {[%clk 0:02:01.5]}
17. Bf3 {[%clk 0:02:22]} 17... a4 {[%clk 0:01:50.7]} 18. Qd3 {[%clk 0:02:08.4]}
18... Ne7 {[%clk 0:01:47.5]} 19. Nxe7+ {[%clk 0:02:03.1]} 19... Qxe7 {[%clk
0:01:47.3]} 20. Na3 {[%clk 0:02:03.1]} 20... Rfc8 {[%clk 0:01:40.1]} 21. Rfd1
{[%clk 0:01:59.8]} 21... Rb6 {[%clk 0:01:00.8]} 22. Nxb5 {[%clk 0:01:42.7]}
22... Bc4 {[%clk 0:00:56.5]} 23. Nxd6 {[%clk 0:01:42.8]} 23... Bxd3 {[%clk
0:00:47.2]} 24. Nxc8 {[%clk 0:01:42.3]} 24... Qc7 {[%clk 0:00:40.8]} 25. Nxb6
{[%clk 0:01:41.6]} 25... Qxb6 {[%clk 0:00:41.2]} 26. Rxd3 {[%clk 0:01:41.1]}
26... g6 {[%clk 0:00:37.2]} 27. a3 {[%clk 0:01:39.8]} 27... Qc7 {[%clk
0:00:33.3]} 28. Be2 {[%clk 0:01:34.3]} 28... f5 {[%clk 0:00:25.3]} 29. exf5
{[%clk 0:01:22.1]} 29... e4 {[%clk 0:00:25.1]} 30. Rdd1 {[%clk 0:01:14.2]} 30...
gxf5 {[%clk 0:00:22.2]} 31. c4 {[%clk 0:01:14.4]} 31... Bf6 {[%clk 0:00:20.7]}
32. Rab1 {[%clk 0:01:12.5]} 32... Be5 {[%clk 0:00:21.1]} 33. h3 {[%clk
0:01:08.3]} 33... f4 {[%clk 0:00:12.3]} 34. b5 {[%clk 0:00:57.5]} 34... e3
{[%clk 0:00:04.9]} 35. f3 {[%clk 0:00:52]} 35... Qg7 {[%clk 0:00:04.4]} 36. b6
{[%clk 0:00:51.3]} 36... Qg3 {[%clk 0:00:04.3]} 37. Rf1 {[%clk 0:00:44.8]} 37...
Qg7 {[%clk 0:00:01.9]} 38. b7 {[%clk 0:00:44.4]} 38... Bb8 {[%clk 0:00:01.2]}
39. Rfd1 {[%clk 0:00:44.2]} 39... Qc7 {[%clk 0:00:02]} 40. c5 {[%clk 0:00:41]}
40... Kf8 {[%clk 0:00:02.5]} 41. c6 {[%clk 0:00:40.8]} 41... Ke8 {[%clk
0:00:01.6]} 42. Rd7 {[%clk 0:00:36.7]} 42... Qa5 {[%clk 0:00:01.2]} 43. Rxh7
{[%clk 0:00:32.2]} 1-0

[Event "Early-Titled-Tuesday-Blitz-July-09-2024"]
[Site "Chess.com"]
[Date "2024.07.09"]
[Round "1"]
[White "CristianS27"]
[Black "snowlord"]
[Result "1-0"]
[WhiteElo "2520"]
[BlackElo "2911"]
[TimeControl "180+1"]
[EndTime "8:07:25 PDT"]
[Termination "CristianS27 won on time"]

1. e4 {[%clk 0:01:34.1]} 1... Nf6 {[%clk 0:01:34.6]} 2. e5 {[%clk 0:01:33.8]}
2... Nd5 {[%clk 0:01:34.9]} 3. d4 {[%clk 0:01:34.5]} 3... d6 {[%clk 0:01:35.5]}
4. Nf3 {[%clk 0:01:35.2]} 4... dxe5 {[%clk 0:01:36]} 5. Nxe5 {[%clk 0:01:36.1]}
5... c6 {[%clk 0:01:36.6]} 6. Be2 {[%clk 0:01:35.9]} 6... Bf5 {[%clk 0:01:36.5]}
7. O-O {[%clk 0:01:36]} 7... Nd7 {[%clk 0:01:37.2]} 8. Nxd7 {[%clk 0:01:35.4]}
8... Qxd7 {[%clk 0:01:37.2]} 9. c3 {[%clk 0:01:35.2]} 9... e6 {[%clk 0:01:35.9]}
10. Nd2 {[%clk 0:01:35.7]} 10... Nf4 {[%clk 0:01:33.6]} 11. Bc4 {[%clk
0:01:23.5]} 11... Bd6 {[%clk 0:01:26.8]} 12. Nf3 {[%clk 0:01:22.6]} 12... O-O-O
{[%clk 0:01:20]} 13. Re1 {[%clk 0:01:16.7]} 13... g5 {[%clk 0:01:10.5]} 14. a4
{[%clk 0:01:14.3]} 14... f6 {[%clk 0:01:05.8]} 15. a5 {[%clk 0:01:07.7]} 15...
a6 {[%clk 0:01:05.8]} 16. Bxf4 {[%clk 0:01:01]} 16... Bxf4 {[%clk 0:01:03.4]}
17. Qe2 {[%clk 0:01:01.9]} 17... Rde8 {[%clk 0:01:01.1]} 18. Bd3 {[%clk
0:00:57.8]} 18... Bg6 {[%clk 0:01:01]} 19. b4 {[%clk 0:00:49.5]} 19... Bd6
{[%clk 0:00:51.3]} 20. Rab1 {[%clk 0:00:45.8]} 20... e5 {[%clk 0:00:46.1]} 21.
Bxg6 {[%clk 0:00:41.3]} 21... hxg6 {[%clk 0:00:46.4]} 22. dxe5 {[%clk
0:00:38.7]} 22... Bxe5 {[%clk 0:00:31.6]} 23. Nxe5 {[%clk 0:00:38.8]} 23... Rxe5
{[%clk 0:00:32.5]} 24. Qc4 {[%clk 0:00:35.4]} 24... Rd5 {[%clk 0:00:27]} 25. Qe4
{[%clk 0:00:28.9]} 25... Qh7 {[%clk 0:00:21.5]} 26. h3 {[%clk 0:00:27.4]} 26...
f5 {[%clk 0:00:21.8]} 27. Qe6+ {[%clk 0:00:26.2]} 27... Kb8 {[%clk 0:00:22.5]}
28. c4 {[%clk 0:00:25.8]} 28... Rd2 {[%clk 0:00:17.2]} 29. b5 {[%clk 0:00:25.8]}
29... cxb5 {[%clk 0:00:16.8]} 30. cxb5 {[%clk 0:00:25.9]} 30... Qh4 {[%clk
0:00:10.2]} 31. Qe3 {[%clk 0:00:15.8]} 31... Rd6 {[%clk 0:00:05]} 32. bxa6
{[%clk 0:00:13.8]} 32... Rxa6 {[%clk 0:00:05.9]} 33. Qe5+ {[%clk 0:00:05.1]}
33... Ka8 {[%clk 0:00:06.4]} 34. Qd5 {[%clk 0:00:05.5]} 34... Rb8 {[%clk
0:00:04.7]} 35. Re7 {[%clk 0:00:05.2]} 35... Ra7 {[%clk 0:00:02.3]} 36. a6
{[%clk 0:00:05.7]} 1-0